bitfinex/quotes_ETHUSD_20250414
["timestamp","ask_amount","ask_price","bid_price","bid_amount"]
[1744620652535,4.88628,1637.3,1637.0,5.71058]
[1744620652758,0.20903621,1637.1,1637.0,5.71058]
[1744620652957,4.88628,1637.3,1637.0,5.71058]
[1744620653159,0.20903621,1637.1,1637.0,5.71058]
[1744620653361,4.88628,1637.3,1637.0,5.71058]
[1744620653525,0.20903621,1637.1,1637.0,5.71058]
[1744620653724,5.863492,1637.3,1637.0,5.71058]
[1744620653960,0.20898531,1637.1,1637.0,5.71058]
[1744620654461,4.88628,1637.3,1637.0,5.71058]
[1744620654638,0.20954147,1637.2,1637.0,5.71046]
[1744620654835,16.82798,1637.5,1637.0,5.71053]
[1744620655034,0.21065359,1637.4,1637.2,4.88639]
[1744620655247,4.8849,1637.7,1637.4,4.88577]
[1744620655438,0.1773092,1637.6,1637.4,4.88577]
[1744620655634,16.78288,1637.8,1637.4,4.88577]
[1744620655839,0.17786496,1637.7,1637.4,4.88577]
[1744620656026,1.87393946,1637.7,1637.4,4.88577]
[1744620656864,0.17786496,1637.7,1637.6,4.88519]
[1744620657358,0.17786496,1637.7,1637.5,5.71117]
[1744620657728,0.17786496,1637.7,1637.5,0.8258]
[1744620657934,1.00076496,1637.7,1637.3,5.69814]
[1744620658144,4.88522,1637.6,1637.3,5.69814]
[1744620658573,0.17675337,1637.5,1637.3,5.69814]
[1744620659077,0.17675337,1637.5,1637.3,0.8121]
[1744620659428,0.17675337,1637.5,1637.2,5.68357]
[1744620659903,4.88597,1637.4,1637.1,0.7973]
[1744620660196,5.47383234,1637.4,1637.1,0.7973]
[1744620660355,0.17564151,1637.3,1637.1,0.7973]
[1744620660759,0.58786234,1637.4,1637.1,5.68387]
[1744620660967,0.58786234,1637.4,1637.0,4.88692]
[1744620660968,0.17508548,1637.2,1637.0,4.88692]
[1744620661193,6.235,1637.6,1637.3,4.88599]
[1744620661395,12.87514765,1637.6,1637.2,4.88639]
[1744620661613,12.87514765,1637.6,1637.2,9.77262]
[1744620661903,12.87514765,1637.6,1637.2,9.77251]
[1744620662103,7.98985765,1637.6,1637.3,4.88605]
[1744620662305,7.98985765,1637.6,1637.4,5.69697]
[1744620662306,6.235,1637.6,1637.4,5.69697]
[1744620662461,6.235,1637.7,1637.5,4.88539]
[1744620663310,5.6633,1637.9,1637.4,0.8112]
[1744620663512,12.95305,1637.9,1637.4,0.8112]
[1744620663719,12.95305,1637.9,1637.5,4.88529]
[1744620663920,0.5,1637.8,1637.5,9.77066]
[1744620665432,0.5,1637.8,1637.6,4.88504]
[1744620665719,11.11935,1637.9,1637.6,4.88504]
[1744620666031,0.8213,1637.8,1637.2,4.88637]
[1744620666187,3.8213,1637.8,1637.2,5.66637]
[1744620666389,4.88553,1637.5,1637.2,5.66637]
[1744620667725,10.58731,1637.5,1637.2,0.78]
[1744620667868,5.944531,1637.4,1637.0,4.88697]
[1744620668068,4.8858,1637.4,1637.0,5.69601]
[1744620668291,11.93561,1637.5,1637.1,4.88654]
[1744620668578,0.17677186,1637.3,1637.1,9.77311]
[1744620668789,11.93561,1637.5,1637.1,9.77311]
[1744620668972,0.17621583,1637.2,1637.1,4.88654]
[1744620669172,4.8861,1637.3,1637.0,5.70131876]
[1744620669376,0.17621583,1637.2,1637.0,0.81434876]
[1744620669995,4.88668,1637.1,1637.0,0.00514876]
[1744620670471,5.06041107,1637.1,1637.0,0.00514876]
[1744620671271,0.17373107,1637.1,1637.0,0.00514876]
[1744620671487,9.7724,1637.3,1637.0,0.00514876]
[1744620671811,0.17482432,1637.2,1637.0,0.00514876]
[1744620672187,5.06121432,1637.2,1637.0,0.00514876]
[1744620672374,6.05594875,1637.2,1637.0,0.00514876]
[1744620672816,4.88668,1637.1,1637.0,0.00514876]
[1744620673021,5.68448,1637.1,1637.0,0.00514876]
[1744620673228,14.29625652,1637.1,1637.0,0.00514876]
[1744620673427,4.88873,1636.5,1636.1,5.75476]
[1744620673574,4.88774,1636.8,1636.3,4.88907]
[1744620673575,5.6701,1636.8,1636.3,4.88907]
[1744620673774,0.16472796,1636.4,1636.3,5.70417]
[1744620674015,10.55788,1636.8,1636.4,4.88877]
[1744620674175,5.6701,1636.8,1636.4,9.77743]
[1744620674376,5.6701,1636.8,1636.4,4.88866]
[1744620674581,5.45517,1636.7,1636.3,5.70415]
[1744620674821,16.57825,1636.7,1636.3,5.70415]
[1744620675119,6.235,1636.7,1636.4,4.88877]
[1744620675429,4.88894,1636.4,1636.1,0.05]
[1744620675574,11.9079,1636.7,1636.3,4.88906]
[1744620675781,11.12307,1637.0,1636.6,5.64703]
[1744620675979,0.99473443,1637.2,1636.6,0.759]
[1744620676214,0.99473443,1637.2,1636.7,4.88773]
[1744620676215,4.88687,1637.1,1636.7,4.88773]
[1744620676391,4.88687,1637.1,1636.7,9.77545]
[1744620676600,9.77377,1637.1,1636.7,4.88772]
[1744620676797,5.88112443,1637.2,1636.8,4.88751]
[1744620677008,11.90715,1637.3,1636.8,0.759]
[1744620677284,11.90715,1637.3,1636.9,4.88698]
[1744620677285,11.1221,1637.3,1636.9,4.88698]
[1744620678084,4.88669,1637.1,1636.8,0.759]
[1744620678320,4.88669,1637.1,1636.7,5.66784]
[1744620678719,4.88699,1637.0,1636.7,5.66779]
[1744620678924,9.77419,1637.0,1636.7,0.7801]
[1744620679122,5.864358,1637.0,1636.5,4.88847]
[1744620679428,4.88743,1636.9,1636.5,5.66857]
[1744620679727,4.88743,1636.9,1636.5,10.55686]
[1744620680424,4.88743,1636.9,1636.5,5.66839]
[1744620680630,10.8501188,1636.9,1636.5,5.66839]
[1744620680831,4.88772,1636.8,1636.5,0.7801]
[1744620681396,9.77559,1636.8,1636.5,0.7801]
[1744620681602,4.88772,1636.8,1636.5,0.7801]
[1744620681828,4.88772,1636.8,1636.4,4.88876]
[1744620682146,6.67241888,1636.8,1636.4,4.88862]
[1744620682331,6.67241888,1636.8,1636.4,4.88876]
[1744620682540,4.8886,1636.5,1636.1,5.75965]
[1744620682834,4.88881,1636.4,1636.1,0.87]
[1744620683424,4.88881,1636.4,1636.1,5.75966]
[1744620683739,11.1226,1636.5,1636.2,4.88937]
[1744620683740,0.14761284,1636.3,1636.2,4.88937]
[1744620683908,0.14761284,1636.3,1636.1,5.75966]
[1744620684237,16.01146,1636.5,1636.1,5.75966]
[1744620684532,4.88878,1636.4,1636.1,5.75966]
[1744620684695,5.03705703,1636.4,1636.1,5.75966]
[1744620684896,4.88908,1636.3,1636.1,0.05]
[1744620685122,0.14716363,1636.2,1636.1,0.05]
[1744620685518,12.723666,1636.5,1636.1,0.05]
[1744620685722,0.14827703,1636.4,1636.1,4.9395]
[1744620685947,0.14827703,1636.4,1636.2,5.71992]
[1744620686151,0.14827703,1636.4,1636.2,0.8307]
[1744620686306,4.88917,1636.3,1636.1,0.05]
[1744620686622,5.86462479,1636.2,1636.1,0.05]
[1744620687909,9.40212479,1636.2,1635.9,0.3998594]
[1744620688109,3.8165,1636.0,1635.3,0.7758]
[1744620690148,5.0306927,1635.7,1635.3,5.66774]
[1744620690544,0.1398127,1635.7,1635.5,4.89142]
[1744620690717,0.1398127,1635.7,1635.4,4.89169]
[1744620691256,0.1398127,1635.7,1635.6,0.775]
[1744620691615,3.0,1636.0,1635.6,0.775]
[1744620691616,4.89041,1635.9,1635.6,0.775]
[1744620691856,0.14304122,1635.7,1635.6,0.775]
[1744620692065,4.89041,1635.9,1635.6,0.775]
[1744620692672,4.89122,1635.6,1635.2,4.89224]
[1744620692959,0.14015143,1635.5,1635.2,4.89224]
[1744620693317,0.14015143,1635.5,1635.3,4.95293393]
[1744620693520,4.89116,1635.7,1635.3,4.89179]
[1744620693820,0.14264605,1635.6,1635.3,9.84484393]
[1744620694027,0.14264605,1635.6,1635.4,4.89171]
[1744620694229,11.1266,1635.8,1635.4,4.89171]
[1744620694438,0.1420888,1635.5,1635.4,4.89171]
[1744620694937,6.236,1635.8,1635.2,6.716177]
[1744620695134,0.1420888,1635.5,1635.3,4.89204]
[1744620695333,4.89112,1635.7,1635.3,4.89204]
[1744620695548,0.14153147,1635.4,1635.3,4.89204]
[1744620695857,4.89119,1635.6,1635.2,5.65745]
[1744620696060,0.14153147,1635.4,1635.2,5.65745]
[1744620696355,0.13733433,1635.3,1635.2,5.65745]
[1744620696854,4.89112,1635.7,1635.3,4.89191]
[1744620697182,0.489112,1635.6,1635.3,4.89191]
[1744620697961,0.489112,1635.6,1635.4,4.89175]
[1744620698149,4.89091,1635.7,1635.4,4.89175]
[1744620698454,16.01761,1635.8,1635.4,4.89175]
[1744620698760,4.89087,1635.7,1635.4,4.89175]
[1744620699061,5.02636852,1635.7,1635.3,4.89205]
[1744620699568,5.02636852,1635.7,1635.3,9.78401]
[1744620699773,0.13549852,1635.7,1635.6,5.68617]
[1744620700267,4.88968,1636.1,1635.7,4.89074]
[1744620700430,9.77956,1636.1,1635.7,4.89074]
[1744620700631,4.88997,1636.0,1635.7,4.89074]
[1744620700878,4.88968,1636.1,1635.7,4.89074]
[1744620701078,6.17,1636.2,1635.8,4.89036]
[1744620701236,4.88949,1636.2,1635.8,9.78076]
[1744620701637,4.88949,1636.2,1635.9,4.89025]
[1744620701844,6.238,1636.3,1636.0,4.88974]
[1744620702044,6.238,1636.3,1636.1,4.8895]
[1744620702376,6.238,1636.3,1636.1,4.95061481]
[1744620702577,4.8885,1636.5,1636.1,4.95061481]
[1744620702578,6.238,1636.5,1636.3,4.88907]
[1744620702879,52.85961575,1636.7,1636.3,9.77803]
[1744620703078,52.85961575,1636.7,1636.3,9.77787]
[1744620703383,52.54091,1636.7,1636.3,9.77786]
[1744620703958,52.54091,1636.7,1636.4,4.88876]
[1744620704993,52.54091,1636.7,1636.3,4.88891]
[1744620706090,52.54091,1636.7,1634.9,6.427]
[1744620706091,4.88929,1636.3,1635.8,4.89042]
[1744620706290,4.88927,1636.3,1635.8,5.69202]
[1744620706457,4.88971,1636.1,1635.8,0.8016]
[1744620706847,4.88939,1636.2,1635.8,5.69216]
[1744620707077,4.88939,1636.2,1635.8,5.75328458]
[1744620707387,10.75681,1636.2,1635.8,5.69216]
[1744620707754,5.86724,1636.2,1635.8,5.69216]
[1744620708149,10.75682,1636.2,1635.8,5.69216]
[1744620708762,6.61894,1636.2,1635.8,0.8016]
[1744620709079,4.89022,1636.0,1635.6,4.89113]
[1744620709388,4.89022,1636.0,1635.6,10.843037]
[1744620709594,4.89022,1636.0,1635.7,4.89083]
[1744620709766,4.89022,1636.0,1635.6,10.842897]
[1744620710191,4.89022,1636.0,1635.7,4.89083]
[1744620712577,4.89039,1635.9,1635.6,4.8911]
[1744620712909,11.19019,1636.0,1635.6,9.7822]
[1744620713512,11.19019,1636.0,1635.7,4.89082]
[1744620715803,6.3,1636.0,1635.7,9.78152]
[1744620716049,6.3,1636.0,1635.7,4.8907]
[1744620717832,6.3,1636.0,1635.7,4.95182943]
[1744620718494,6.3,1636.0,1635.7,9.84254945]
[1744620718695,6.3,1636.0,1635.8,0.7736]
[1744620718926,6.3,1636.0,1635.8,5.66407]
[1744620719617,6.3,1636.0,1635.8,10.55454]
[1744620719819,6.3,1636.0,1635.7,0.98425495]
[1744620719820,11.19008,1636.0,1635.7,0.98425495]
[1744620720033,11.19008,1636.0,1635.6,10.53709]
[1744620720205,4.89008,1636.0,1635.6,10.53709]
[1744620720410,4.88969,1636.1,1635.8,4.8905]
[1744620720722,4.88998,1636.0,1635.7,0.7575]
[1744620720922,1.77951,1636.1,1635.7,0.7575]
[1744620720923,6.66934,1636.1,1635.7,5.64822]
[1744620721452,11.5592,1636.1,1635.7,5.64822]
[1744620721738,4.88998,1636.0,1635.7,0.7575]
[1744620723743,4.88972,1636.1,1635.7,5.64832]
[1744620723939,4.88972,1636.1,1635.8,4.89055]
[1744620724140,4.88972,1636.1,1635.7,10.54320621]
[1744620725146,6.9014596,1636.7,1636.2,5.69624]
[1744620725300,4.88859,1636.5,1636.2,0.807]
[1744620725643,4.88822,1636.6,1636.2,5.69627]
[1744620726139,4.88884,1636.4,1636.2,0.807]
[1744620726341,5.65098,1636.5,1636.2,5.69637]
[1744620726543,5.65098,1636.5,1636.2,0.807]
[1744620726842,11.593567,1636.5,1636.2,0.807]
[1744620727312,4.88885,1636.4,1636.2,0.807]
[1744620727846,6.704897,1636.5,1636.2,0.807]
[1744620728006,5.942397,1636.5,1636.2,0.807]
[1744620728347,4.88879,1636.4,1636.2,0.807]
[1744620728519,4.88879,1636.4,1636.1,4.8895]
[1744620729046,4.88879,1636.4,1636.1,4.95061382]
[1744620729251,4.88911,1636.3,1636.1,0.06111382]
[1744620729431,4.88911,1636.3,1636.0,0.7814]
[1744620730006,4.88854,1636.5,1636.0,0.7814]
[1744620730231,4.88854,1636.5,1636.1,4.88951]
[1744620730433,9.77728,1636.5,1636.1,4.88951]
[1744620730750,8.6451,1636.8,1636.4,4.88859]
[1744620730956,4.88789,1636.7,1636.3,5.72106]
[1744620731106,9.77601,1636.7,1636.3,5.72106]
[1744620731302,4.88878,1636.4,1636.1,4.88963]
[1744620731546,4.88878,1636.4,1636.1,0.8276]
[1744620732014,4.88878,1636.4,1636.1,5.71726]
[1744620732349,4.88894,1636.4,1636.1,0.8276]
[1744620732508,6.690685,1636.4,1636.0,4.8898]
[1744620732708,6.690685,1636.4,1636.0,9.77961]
[1744620732922,5.71294,1636.4,1636.1,4.88965]
[1744620733123,10.60191,1636.4,1636.0,4.8898]
[1744620733325,4.8891,1636.3,1635.9,10.63254529]
[1744620734045,4.8891,1636.3,1635.9,5.68119]
[1744620735345,4.8891,1636.3,1635.9,10.57129]
[1744620735558,4.8891,1636.3,1635.9,10.63241012]
[1744620737138,4.8891,1636.3,1635.9,10.57129]
[1744620737343,4.8891,1636.3,1635.9,11.628419]
[1744620737658,4.88938,1636.2,1635.9,0.7911]
[1744620737952,4.88938,1636.2,1635.8,4.89053]
[1744620738526,4.88968,1636.1,1635.8,4.89053]
[1744620738926,4.88938,1636.2,1635.8,4.89053]
[1744620739138,4.88938,1636.2,1635.8,4.89459633]
[1744620739337,10.756789,1636.2,1635.8,4.89459633]
[1744620739650,4.8897,1636.1,1635.8,4.89459634]
[1744620739850,4.8897,1636.1,1635.8,0.00406634]
[1744620740061,9.77954,1636.1,1635.8,0.00406634]
[1744620740554,9.77955,1636.1,1635.8,0.00406634]
[1744620740739,6.7889399,1636.1,1635.8,0.00406634]
[1744620741109,0.8235,1636.1,1635.8,0.00406634]
[1744620741312,9.77899,1636.2,1635.8,4.89452634]
[1744620741553,4.88978,1636.1,1635.8,0.00406635]
[1744620742048,4.88999,1636.0,1635.8,0.00406635]
[1744620745362,4.88887,1636.4,1636.0,5.66518635]
[1744620745952,9.77784,1636.4,1636.0,5.66518635]
[1744620746362,4.88908,1636.3,1636.0,5.66518636]
[1744620747665,11.9579,1636.5,1636.1,4.88964]
[1744620747969,11.9579,1636.5,1636.2,4.88927]
[1744620748264,11.9579,1636.5,1636.2,4.89333636]
[1744620748868,4.88886,1636.4,1636.2,0.00406636]
[1744620749159,4.88886,1636.4,1636.2,0.00406635]
[1744620749374,16.84666,1636.5,1636.2,0.00406635]
[1744620749732,11.9579,1636.5,1636.2,0.00406635]
[1744620750069,16.84661,1636.5,1636.2,0.00406635]
[1744620750368,11.9579,1636.5,1636.2,0.00406635]
[1744620750679,11.15223,1636.6,1636.3,0.8015]
[1744620750833,6.264,1636.6,1636.3,5.69449635]
[1744620751032,48.471,1636.9,1636.4,0.06110638]
[1744620751271,4.8869,1637.1,1636.6,5.68024]
[1744620751272,11.96579,1637.1,1636.6,5.68024]
[1744620751481,18.049319,1637.1,1636.7,4.88783]
[1744620751782,18.049319,1637.1,1636.7,4.89189631]
[1744620751783,13.162369,1637.1,1636.7,4.89189631]
[1744620751978,8.275579,1637.1,1636.8,4.88748]
[1744620752146,7.460579,1637.1,1636.8,4.89154628]
[1744620752333,7.460579,1637.1,1636.8,4.89154626]
[1744620752573,6.264,1637.1,1636.8,0.00406626]
[1744620752881,11.15081,1637.1,1636.8,0.00406626]
[1744620755924,4.88703,1637.0,1636.8,0.00406626]
[1744620756069,5.70568,1636.9,1636.8,0.00406626]
[1744620756266,9.15612438,1636.9,1636.8,0.00406626]
[1744620756465,10.56043982,1636.9,1636.8,0.00406626]
[1744620758504,10.10999544,1636.9,1636.8,0.00406626]
[1744620766910,7.88728,1636.9,1636.8,0.00406626]
[1744620767109,4.88728,1636.9,1636.8,0.00406626]
[1744620768412,5.38728,1636.9,1636.8,0.00406626]
[1744620773429,9.16448,1636.9,1636.8,0.00406626]
[1744620773717,9.71448,1636.9,1636.8,0.00406626]
[1744620773886,11.817331,1636.9,1636.8,0.00406626]
[1744620774084,17.987331,1636.9,1636.8,0.00406626]
[1744620775311,18.44132104,1636.9,1636.8,0.00406626]
[1744620775709,66.08732104,1636.9,1636.8,0.00406626]
[1744620778615,66.08732104,1636.9,1636.8,0.00474131]
[1744620780646,72.51432104,1636.9,1636.8,1.31e-06]
[1744620780848,66.08732104,1636.9,1636.8,1.31e-06]
[1744620781335,66.08732104,1636.9,1636.0,0.7627]
[1744620781336,4.88908,1636.3,1636.0,0.7627]
[1744620781524,9.77834,1636.3,1636.0,1.816997]
[1744620782441,6.237,1636.4,1636.1,0.8271]
[1744620782442,11.12585,1636.4,1636.1,0.8271]
[1744620782646,11.12585,1636.4,1636.1,5.71672]
[1744620783240,11.12585,1636.4,1636.1,0.8271]
[1744620783427,11.12585,1636.4,1636.1,1.5042257]
[1744620784251,16.01485,1636.4,1636.1,1.5042257]
[1744620784409,16.01485,1636.4,1636.1,0.8271]
[1744620784410,4.88909,1636.3,1636.1,0.8271]
[1744620786641,62.58349104,1636.9,1636.3,0.7941]
[1744620786818,16.01411,1636.7,1636.4,0.7941]
[1744620787013,4.88837,1636.6,1636.4,0.7941]
[1744620787222,4.88892,1636.4,1636.2,0.826]
[1744620787550,4.88848,1636.5,1636.2,0.826]
[1744620787913,4.88822,1636.6,1636.2,5.71529]
[1744620788120,4.88822,1636.6,1636.2,10.60452]
[1744620788445,4.88822,1636.6,1636.3,1.060452]
[1744620788629,9.77658,1636.6,1636.3,1.060452]
[1744620788811,4.88857,1636.5,1636.3,1.060452]
[1744620789013,4.88857,1636.5,1636.2,0.826]
[1744620789353,9.7773,1636.5,1636.2,0.826]
[1744620789880,4.88857,1636.5,1636.2,0.826]
[1744620790059,4.8882,1636.6,1636.3,0.7501]
[1744620790258,4.8882,1636.6,1636.3,5.63913]
[1744620790456,4.8879,1636.7,1636.3,11.581002]
[1744620790643,4.8879,1636.7,1636.3,6.691972]
[1744620790844,9.77596,1636.7,1636.3,6.691972]
[1744620791596,4.8879,1636.7,1636.3,11.580932]
[1744620791782,4.8879,1636.7,1636.3,11.6420401]
[1744620791990,9.77595,1636.7,1636.3,6.691902]
[1744620792295,47.646,1636.9,1636.5,0.7876]
[1744620792598,4.8871,1637.0,1636.7,0.7768]
[1744620793346,4.88733,1636.9,1636.7,0.7768]
[1744620794912,4.8871,1637.0,1636.7,0.7768]
[1744620795092,6.237,1637.1,1636.7,0.7768]
[1744620795250,6.237,1637.1,1636.8,5.64272]
[1744620795450,6.237,1637.1,1636.8,6.695778]
[1744620795990,6.237,1637.1,1636.8,1.808358]
[1744620795991,11.12379,1637.1,1636.8,1.808358]
[1744620796150,4.88728,1636.9,1636.6,0.7724]
[1744620796488,4.8876,1636.8,1636.6,0.7724]
[1744620796654,9.7754,1636.8,1636.6,0.7724]
[1744620796854,4.8876,1636.8,1636.6,0.7724]
[1744620797054,4.88731,1636.9,1636.6,0.7724]
[1744620797577,4.88768,1636.8,1636.6,0.7724]
[1744620798304,4.88788,1636.7,1636.6,0.7724]
[1744620798857,4.88768,1636.8,1636.6,0.7724]
[1744620799101,13.12501754,1637.1,1636.6,5.66046]
[1744620799282,4.31250175,1637.0,1636.6,0.7724]
[1744620799487,4.88699,1637.0,1636.6,5.66047]
[1744620799699,4.88699,1637.0,1636.6,5.66046]
[1744620799943,9.77416,1637.0,1636.6,5.66046]
[1744620800566,4.88743,1636.9,1636.6,0.7724]
[1744620801401,9.77495,1636.9,1636.6,0.7724]
[1744620801606,4.88758,1636.8,1636.6,0.7724]
[1744620802166,5.864925,1636.9,1636.6,0.7724]
[1744620802769,4.88761,1636.8,1636.6,0.7724]
[1744620802972,10.752395,1636.9,1636.6,0.7724]
[1744620803395,4.88758,1636.8,1636.6,0.7724]
[1744620803590,10.8506005,1636.8,1636.6,0.7724]
[1744620804194,4.88819,1636.6,1636.4,0.7632]
[1744620804570,4.88819,1636.6,1636.2,0.7955]
[1744620804571,4.88848,1636.5,1636.2,0.7955]
[1744620804771,4.88883,1636.4,1636.2,0.7955]
[1744620805190,4.88907,1636.3,1636.2,0.7955]
[1744620805409,5.866561,1636.4,1636.2,0.7955]
[1744620806701,4.88821,1636.6,1636.2,5.68479]
[1744620806914,9.7766,1636.6,1636.2,5.68479]
[1744620807909,4.8885,1636.5,1636.2,5.68479]
[1744620809510,4.88821,1636.6,1636.2,5.68479]
[1744620809681,9.77658,1636.6,1636.2,5.68479]
[1744620809880,11.455238,1636.6,1636.2,5.68479]
[1744620810095,4.88848,1636.5,1636.2,5.68479]
[1744620813827,6.566868,1636.6,1636.2,5.68479]
[1744620814117,4.88855,1636.5,1636.2,5.68478]
[1744620814493,5.38855,1636.5,1636.2,5.68478]
[1744620814817,4.88855,1636.5,1636.2,5.68478]
[1744620818934,6.0340918,1636.5,1636.2,0.7955]
[1744620819226,4.88936,1636.3,1636.0,0.7605]
[1744620819600,8.76889754,1636.4,1636.0,10.54023]
[1744620819926,4.88878,1636.4,1636.0,10.54023]
[1744620820131,4.88878,1636.4,1636.1,4.88958]
[1744620820717,4.8892,1636.3,1636.0,0.7605]
[1744620820923,4.88938,1636.2,1636.0,0.7605]
[1744620821239,4.8892,1636.3,1636.0,0.7605]
[1744620821426,4.1455418,1636.5,1636.0,5.71154231]
[1744620821626,4.1455418,1636.5,1636.1,4.8895]
[1744620821627,13.9229218,1636.5,1636.1,4.8895]
[1744620822746,6.0342318,1636.5,1636.1,9.77905]
[1744620823048,6.0342318,1636.5,1636.2,0.7769]
[1744620823720,1.1455418,1636.5,1636.2,5.66624]
[1744620824032,4.8886,1636.5,1636.2,0.7769]
[1744620825443,9.77728,1636.5,1636.2,0.7769]
[1744620825647,4.8886,1636.5,1636.2,0.7769]
[1744620826548,9.77726,1636.5,1636.2,0.7769]
[1744620827050,4.8886,1636.5,1636.2,0.7769]
[1744620827720,4.88882,1636.4,1636.2,0.7769]
[1744620828232,5.94219,1636.5,1636.2,0.7769]
[1744620828425,1.05359,1636.5,1636.2,0.7769]
[1744620828646,4.88907,1636.3,1636.2,0.7769]
[1744620828830,4.8888,1636.4,1636.2,0.7769]
[1744620830046,9.77775,1636.4,1636.2,0.7769]
[1744620830757,4.88908,1636.3,1636.0,5.66972]
[1744620831252,4.88908,1636.3,1636.0,0.78364501]
[1744620831824,4.88908,1636.3,1636.0,5.67359501]
[1744620833764,9.77833,1636.3,1636.0,0.78364501]
[1744620833935,10.756163,1636.3,1636.0,0.78364501]
[1744620834134,4.8894,1636.2,1636.0,0.78364501]
[1744620834366,5.866913,1636.3,1636.0,5.67358501]
[1744620834661,0.977833,1636.3,1636.0,5.67358501]
[1744620835274,16.0137,1636.4,1636.0,5.67358501]
[1744620838188,4.88922,1636.3,1636.0,0.78364501]
[1744620839192,11.12479,1636.4,1636.0,5.67359501]
[1744620839494,16.0138,1636.4,1636.0,5.67359501]
[1744620839787,9.234,1636.7,1636.1,0.8026]
[1744620840091,9.234,1636.7,1636.6,0.8026]
[1744620840092,6.234,1636.7,1636.6,0.8026]
[1744620840510,6.234,1636.7,1636.3,4.88895]
[1744620840801,11.12201,1636.7,1636.4,0.7819]
[1744620840992,16.0101,1636.7,1636.4,0.7819]
[1744620841300,4.88836,1636.6,1636.4,0.7819]
[1744620842055,13.81960175,1636.7,1636.4,0.7819]
[1744620843416,13.03420175,1636.7,1636.4,0.7819]
[1744620844414,13.03420175,1636.7,1636.4,5.67066]
[1744620844415,6.234,1636.7,1636.4,5.67066]
[1744620844719,6.234,1636.7,1636.4,10.55934]
[1744620844865,4.88769,1636.8,1636.4,10.55934]
[1744620845072,4.88769,1636.8,1636.4,5.67058]
[1744620845073,9.77548,1636.8,1636.4,5.67058]
[1744620846398,4.88732,1636.9,1636.5,4.88847]
[1744620846586,4.88732,1636.9,1636.5,4.89221498]
[1744620846587,4.88758,1636.8,1636.5,4.89221498]
[1744620846984,6.234,1637.0,1636.8,4.88751]
[1744620847185,11.12115,1637.0,1636.8,0.00374493]
[1744620847387,19.12105754,1637.0,1636.8,0.00374492]
[1744620847595,14.23386754,1637.0,1636.8,0.00374492]
[1744620847926,9.34671754,1637.0,1636.8,0.00374492]
[1744620848431,14.23373754,1637.0,1636.8,0.00374492]
[1744620848714,20.37869714,1637.0,1636.8,0.00374492]
[1744620849615,6.234,1637.0,1636.8,0.00374492]
[1744620850185,6.11271754,1637.2,1636.9,0.7708]
[1744620850384,7.99929754,1637.2,1636.9,5.66180492]
[1744620850585,7.99929754,1637.2,1636.9,5.6618049]
[1744620850784,3.11271754,1637.2,1636.9,5.66180489]
[1744620850985,3.11271754,1637.2,1636.9,0.77454487]
[1744620851327,10.03943629,1637.2,1636.9,0.77454487]
[1744620851614,3.11271754,1637.2,1636.9,5.66170487]
[1744620851779,3.11271754,1637.2,1636.9,10.54885485]
[1744620851978,17.28917,1637.3,1636.9,5.66169482]
[1744620852214,17.28917,1637.3,1636.9,5.6616948]
[1744620852808,17.28917,1637.3,1636.9,5.6616648]
[1744620853007,17.28917,1637.3,1636.9,10.54879479]
[1744620853315,17.28917,1637.3,1636.9,10.54879477]
[1744620853504,19.89810175,1637.3,1636.9,10.54879477]
[1744620853711,15.01193175,1637.3,1637.0,4.88697]
[1744620854021,8.84193175,1637.3,1637.0,4.89071471]
[1744620854183,8.84193175,1637.3,1637.0,4.8907147]
[1744620854515,8.84193175,1637.3,1637.0,4.89071469]
[1744620854887,8.84193175,1637.3,1637.0,4.89071468]
[1744620855298,8.84193175,1637.3,1637.0,9.77757468]
[1744620855628,8.84193175,1637.3,1637.0,9.77757466]
[1744620855932,8.84193175,1637.3,1637.0,4.89060464]
[1744620856629,6.233,1637.3,1637.0,4.89060464]
[1744620856832,6.233,1637.3,1637.0,4.89060461]
[1744620857334,6.233,1637.3,1637.0,4.8906046]
[1744620857503,6.233,1637.3,1637.0,9.7774646]
[1744620857832,6.233,1637.3,1637.0,4.89060457]
[1744620858231,6.233,1637.3,1637.2,4.88639]
[1744620858431,3.0,1637.5,1637.3,4.88595]
[1744620858737,6.232,1637.6,1637.2,0.80644448]
[1744620859034,6.232,1637.6,1637.5,5.64419]
[1744620859231,47.651,1637.8,1637.5,5.64419]
[1744620859419,47.651,1637.8,1637.5,10.52951]
[1744620859624,47.651,1637.8,1637.6,4.88519]
[1744620859829,47.651,1637.8,1637.5,10.52941]
[1744620860038,47.651,1637.8,1637.5,5.64402]
[1744620861207,47.651,1637.8,1637.6,4.88517]
[1744620861448,47.651,1637.8,1637.6,9.77034]
[1744620861652,6.232,1637.9,1637.6,9.77021]
[1744620862252,6.232,1637.9,1637.6,9.77013]
[1744620862456,6.232,1637.9,1637.6,4.88504]
[1744620862656,6.232,1637.9,1637.6,6.0432598]
[1744620863323,4.88475,1637.8,1637.5,0.76244388]
[1744620863534,4.88475,1637.8,1637.5,0.00374387]
[1744620864649,3.11271754,1637.7,1637.5,0.00374387]
[1744620864821,5.65889,1637.6,1637.5,0.00374387]
[1744620865142,8.77143754,1637.7,1637.5,0.00374387]
[1744620865350,11.60519,1637.6,1636.8,0.831]
[1744620865509,3.11271754,1637.0,1636.8,0.831]
[1744620865910,3.0,1637.1,1636.8,5.71851]
[1744620866416,7.88671,1637.1,1636.8,5.71851]
[1744620866754,3.0,1637.3,1637.0,4.88698]
[1744620867336,7.88614,1637.3,1636.9,4.88717]
[1744620867717,4.88652,1637.2,1636.8,0.831]
[1744620867915,5.71136,1637.1,1636.8,0.831]
[1744620868516,10.59825,1637.1,1636.8,0.831]